bitfinex-derivatives/quotes_ETHF0:USTF0_20241022
["timestamp","ask_amount","ask_price","bid_price","bid_amount"]
[1729565883195,1.37,2635.4,2635.3,0.37958]
[1729565883694,7.8454,2635.4,2634.9,0.99607028]
[1729565883887,1.37,2635.2,2634.9,0.99607028]
[1729565884089,13.09367462,2635.6,2634.9,1.37]
[1729565884090,4.89835,2635.6,2634.9,1.37]
[1729565884290,1.37,2635.0,2634.9,0.37965]
[1729565886095,1.37,2635.0,2634.8,3.58745]
[1729565886293,1.37,2634.9,2634.8,3.58745]
[1729565887492,3.2078,2635.6,2634.8,3.2078]
[1729565887702,1.311,2635.5,2635.0,0.37963]
[1729565887895,1.37,2635.1,2635.0,0.37963]
[1729565888298,5.1652,2635.1,2634.8,3.2078]
[1729565888496,1.37,2635.2,2634.8,3.58746]
[1729565888497,1.37,2634.9,2634.8,3.58746]
[1729565893300,1.37,2634.9,2634.7,0.37967]
[1729565893301,5.1652,2634.9,2634.7,0.37967]
[1729565893496,1.37,2634.8,2634.6,3.58748]
[1729565893703,1.37,2634.7,2634.6,3.2078]
[1729565893897,1.37,2634.7,2634.3,0.37973]
[1729565893898,1.74968,2634.7,2634.3,0.37973]
[1729565894098,8.66862465,2635.2,2634.3,0.37973]
[1729565894099,1.37,2634.4,2634.3,0.37973]
[1729565894408,3.2078,2634.8,2634.4,0.37971]
[1729565894602,1.37,2634.5,2634.4,0.37971]
[1729565894793,1.37,2634.5,2634.3,41.17972]
[1729565895000,1.37,2634.4,2634.3,41.17974]
[1729565896098,0.37964,2635.0,2634.6,0.37968]
[1729565896294,1.37,2634.7,2634.6,0.37968]
[1729565897603,4.81442465,2635.2,2634.9,0.37964]
[1729565897802,1.37,2635.0,2634.9,0.37964]
[1729565898509,5.1652,2635.0,2634.9,0.37964]
[1729565898710,1.37,2635.0,2634.9,0.37964]
[1729565898913,5.1652,2635.0,2634.9,0.37964]
[1729565899405,1.37,2635.0,2634.9,0.37964]
[1729565899807,5.1652,2635.0,2634.9,0.37964]
[1729565900003,1.37,2635.0,2634.9,0.37964]
[1729565900202,5.1652,2635.0,2634.9,0.37964]
[1729565901008,1.37,2635.0,2634.9,0.37964]
[1729565901706,3.50342465,2635.2,2634.7,4.5778]
[1729565901912,3.50342465,2635.2,2634.9,1.74965]
[1729565901913,1.37,2635.0,2634.9,1.74965]
[1729565902106,3.2078,2635.2,2635.1,0.37962]
[1729565902610,3.2078,2635.6,2634.9,1.37]
[1729565902806,3.2078,2635.6,2635.5,0.37956]
[1729565903002,1.6905,2636.0,2635.3,1.37]
[1729565903213,1.37,2636.0,2635.7,0.37953]
[1729565903516,3.2078,2636.2,2635.7,0.37953]
[1729565903713,3.2078,2636.2,2636.1,0.37948]
[1729565904214,1.37,2636.2,2635.7,3.2078]
[1729565904409,0.37943,2636.4,2635.7,0.37953]
[1729565904410,1.37,2635.8,2635.7,0.37953]
[1729565904604,1.37,2635.8,2635.7,4.95733]
[1729565904804,4.8982,2636.7,2636.3,0.37944]
[1729565905117,1.37,2636.4,2636.3,0.37944]
[1729565905311,0.37942,2636.5,2636.2,0.37945]
[1729565905618,1.37,2636.3,2636.2,0.37945]
[1729565906406,2.96,2636.3,2636.2,0.37945]
[1729565906803,2.96,2636.5,2636.3,0.37944]
[1729565907019,2.96,2636.4,2636.3,0.37944]
[1729565907408,3.2078,2636.7,2635.8,0.94881]
[1729565907615,2.96,2636.4,2636.3,0.37945]
[1729565909419,2.96,2636.6,2636.0,3.2078]
[1729565909715,2.96,2636.6,2636.5,0.37942]
[1729565910522,3.2078,2637.0,2636.8,0.37936]
[1729565910817,0.37933,2637.2,2636.7,0.37938]
[1729565910818,2.96,2636.9,2636.7,0.37938]
[1729565911119,2.96,2636.9,2636.3,3.2078]
[1729565911120,2.96,2636.9,2636.8,0.37938]
[1729565911821,2.96,2637.1,2636.9,0.37936]
[1729565912415,6.1678,2637.3,2636.7,3.2078]
[1729565912623,0.37933,2637.2,2636.8,0.37937]
[1729565912822,3.33933,2637.1,2636.8,0.37937]
[1729565913320,0.37936,2637.0,2636.6,0.37939]
[1729565913826,0.37936,2637.0,2636.4,3.2078]
[1729565914121,3.33934,2637.1,2636.8,0.37937]
[1729565914717,0.37935,2637.0,2636.8,0.37937]
[1729565914920,3.33934,2637.1,2636.8,0.37937]
[1729565915618,2.96,2637.1,2636.4,3.2078]
[1729565915820,3.33933,2637.1,2636.9,0.37936]
[1729565916019,2.96,2637.1,2636.9,0.37936]
[1729565916220,2.96,2637.1,2637.0,0.37935]
[1729565916527,6.54711,2637.3,2636.5,2.96]
[1729565916718,6.54711,2637.3,2637.0,0.37934]
[1729565918020,2.96,2637.1,2637.0,0.37934]
[1729565919528,6.752,2637.1,2637.0,0.37934]
[1729565923530,6.752,2637.1,2636.6,3.2078]
[1729565923827,2.96,2637.1,2637.0,0.37935]
[1729565924214,6.752,2637.1,2637.0,0.37935]
[1729565924528,6.752,2637.1,2636.6,3.2078]
[1729565924729,2.96,2637.1,2637.0,0.37935]
[1729565925127,6.752,2637.1,2637.0,0.37935]
[1729565926333,3.792,2637.1,2637.0,0.37935]
[1729565927327,3.792,2637.1,2636.9,0.37935]
[1729565927531,0.37933,2637.2,2636.9,0.37935]
[1729565928129,0.37935,2637.0,2636.7,0.37938]
[1729565928323,1.37,2636.8,2636.7,0.37938]
[1729565930131,1.37,2636.9,2636.8,0.37936]
[1729565930529,3.58711,2637.3,2637.0,0.37934]
[1729565930836,1.37,2637.1,2636.9,1.74935]
[1729565931030,1.37,2637.0,2636.9,1.74936]
[1729565931228,1.37,2637.0,2636.8,1.74937]
[1729565931427,1.37,2636.9,2636.8,1.74937]
[1729565931727,1.37,2636.9,2636.8,0.37937]
[1729565933730,1.37,2636.9,2636.8,1.74937]
[1729565935631,1.37,2637.0,2636.9,0.37936]
[1729565936030,5.162,2637.0,2636.9,0.37936]
[1729565937449,1.37,2637.0,2636.9,0.37936]
[1729565937635,5.162,2637.0,2636.9,0.37936]
[1729565937829,1.37,2637.0,2636.9,0.37936]
[1729565938026,5.162,2637.0,2636.9,0.37936]
[1729565938230,1.37,2637.0,2636.9,0.37936]
[1729565938731,1.37,2637.2,2637.1,0.37933]
[1729565939131,1.37,2637.2,2636.9,1.37]
[1729565939331,1.37,2637.2,2637.1,0.37933]
[1729565939736,1.37,2637.2,2636.9,1.37]
[1729565939938,1.37,2637.1,2637.0,0.37934]
[1729565941342,1.37,2637.1,2636.5,3.2078]
[1729565941537,1.37,2636.7,2636.6,1.7494]
[1729565941731,1.37,2636.8,2636.7,0.37939]
[1729565941929,1.37,2636.9,2636.7,1.37]
[1729565942130,1.37,2636.9,2636.8,1.74938]
[1729565942329,1.37,2637.0,2636.9,0.37935]
[1729565942835,1.37,2637.0,2636.9,1.74935]
[1729565943035,1.37,2637.1,2636.9,1.37]
[1729565943339,1.37,2637.1,2636.5,4.15632]
[1729565943340,1.37,2637.2,2637.1,0.37933]
[1729565945433,3.2078,2637.3,2637.1,1.74933]
[1729565945633,4.5778,2637.3,2637.2,0.37932]
[1729565946642,4.5778,2637.3,2637.2,1.74932]
[1729565947742,0.29602549,2637.6,2637.2,1.37]
[1729565948035,1.74926,2637.7,2637.5,1.74927]
[1729565948243,1.74926,2637.7,2637.6,1.37]
[1729565948641,3.2078,2637.8,2637.6,1.37]
[1729565948846,3.2078,2637.8,2637.7,1.37]
[1729565948847,4.5778,2637.8,2637.7,1.37]
[1729565949038,4.5778,2637.8,2637.7,1.74925]
[1729565949245,4.5778,2637.8,2637.7,1.37]
[1729565949544,4.5778,2637.8,2637.6,1.37]
[1729565949741,3.2078,2637.8,2637.7,0.37925]
[1729565950040,3.2078,2637.8,2637.7,1.74925]
[1729565950238,4.5778,2637.8,2637.7,1.74925]
[1729565950944,4.5778,2637.8,2637.7,0.37925]
[1729565951343,1.37,2637.8,2637.7,0.37925]
[1729565951942,1.37,2637.8,2637.6,1.74925]
[1729565952138,1.34,2638.1,2637.3,40.8]
[1729565952139,0.37921,2638.0,2637.3,40.8]
[1729565952342,1.37,2637.9,2637.8,1.37]
[1729565952647,1.74918,2638.2,2637.9,0.37921]
[1729565952939,1.74918,2638.2,2638.1,1.37]
[1729565953143,0.3792,2638.1,2637.9,1.37]
[1729565953343,1.37,2638.0,2637.5,0.99319867]
[1729565953550,1.37,2637.7,2637.6,1.37]
[1729565953847,1.37,2637.7,2637.6,1.74926]
[1729565954243,1.37,2637.8,2637.6,1.74926]
[1729565954443,1.37,2637.8,2637.7,1.37]
[1729565956759,1.37,2637.8,2637.3,41.79319867]
[1729565956760,1.74923,2637.8,2637.6,1.37]
[1729565957050,1.37,2637.7,2637.6,1.37]
[1729565957248,1.37,2637.7,2637.6,1.74926]
[1729565957945,0.37926,2637.6,2637.3,0.3793]
[1729565958149,1.37,2637.4,2637.3,0.3793]
[1729565958345,1.37,2637.4,2637.2,1.74931]
[1729565958641,1.37,2637.4,2637.3,1.37]
[1729565958947,1.74929,2637.4,2637.2,1.37]
[1729565959541,1.74929,2637.4,2637.2,1.74932]
[1729565960054,1.37,2637.3,2637.1,1.37]
[1729565960253,3.39709934,2637.7,2637.0,0.37935]
[1729565960254,1.37,2637.1,2637.0,0.37935]
[1729565960440,1.37,2637.1,2636.7,0.99319867]
[1729565960749,1.37,2637.1,2637.0,1.37]
[1729565961048,1.37,2637.1,2637.0,1.74935]
[1729565961450,1.74932,2637.2,2637.0,1.74935]
[1729565961838,1.37,2637.2,2637.0,1.74935]
[1729565962045,3.2078,2637.4,2637.2,0.37931]
[1729565962240,1.74925,2637.7,2637.3,1.37]
[1729565962453,1.74925,2637.7,2637.5,1.37]
[1729565962454,1.37,2637.6,2637.5,1.37]
[1729565963048,1.37,2637.6,2637.5,1.74927]
[1729565963348,1.37,2637.6,2637.5,1.37]
[1729565963654,1.37,2637.6,2637.4,1.74928]
[1729565963948,1.37,2637.6,2637.5,1.74927]
[1729565964352,1.37,2637.7,2637.6,0.37925]
[1729565964547,1.37,2637.7,2637.6,1.74925]
[1729565964757,1.37,2637.7,2637.6,1.74926]
[1729565966944,1.37,2637.7,2637.2,3.2078]
[1729565966945,1.37,2637.7,2637.5,0.37927]
[1729565967145,1.37,2637.6,2637.5,0.37927]
[1729565968652,1.37,2637.6,2637.5,1.74927]
[1729565971245,3.58702,2638.0,2637.5,4.5778]
[1729565971451,1.37,2637.8,2637.7,0.37923]
[1729565972746,0.30766105,2638.2,2637.7,1.37]
[1729565972951,3.2078,2638.4,2637.9,0.37921]
[1729565972952,1.37,2638.0,2637.9,0.37921]
[1729565976759,1.37,2638.1,2638.0,0.3792]
[1729565981755,1.37,2638.1,2637.9,1.37]
[1729565981962,6.32701,2638.0,2637.7,0.37923]
[1729565982158,1.37,2637.8,2637.7,0.37923]
[1729565985162,1.37,2637.9,2637.8,0.37923]
[1729565985363,1.37,2637.9,2637.8,1.74923]
[1729565986060,1.37,2638.1,2638.0,0.3792]
[1729565986763,1.37,2638.1,2637.9,1.37]
[1729565987157,1.37,2638.1,2638.0,0.3792]
[1729565990069,1.37,2638.1,2637.6,0.99319867]
[1729565990270,0.30026678,2638.3,2637.7,1.74925]
[1729565990271,1.37,2637.8,2637.7,1.74925]
[1729565990464,1.37,2637.9,2637.8,0.37923]
[1729565990665,1.37,2637.9,2637.8,1.74923]
[1729565995290,0.30523975,2638.3,2637.9,0.37922]
[1729565995291,1.37,2638.0,2637.9,0.37922]
[1729565995590,1.37,2638.0,2637.9,1.74922]
[1729565996276,0.37916,2638.3,2638.1,0.37918]
[1729565996480,1.37,2638.2,2638.1,0.37918]
[1729565996675,1.37,2638.2,2637.9,1.37]
[1729565996887,1.37,2638.0,2637.9,1.74922]
[1729565997280,1.37,2638.0,2637.9,42.54922]
[1729565999888,1.37,2638.1,2637.9,42.17]
[1729566000091,1.37,2638.1,2638.0,0.3792]
[1729566001784,3.2078,2638.5,2638.0,1.37]
[1729566001984,1.37,2638.1,2638.0,1.7492]
[1729566003289,1.37,2638.1,2638.0,0.3792]
[1729566007488,1.37,2638.2,2638.0,1.37]
[1729566007697,1.37,2638.2,2638.1,0.37919]
[1729566009395,0.37915,2638.4,2638.2,0.37917]
[1729566009701,1.37,2638.3,2638.2,0.37917]
[1729566010098,0.37915,2638.4,2638.2,0.37917]
[1729566010398,1.37,2638.3,2638.2,0.37917]
[1729566011599,1.37,2638.3,2638.0,1.37]
[1729566011799,1.37,2638.2,2638.1,0.37918]
[1729566012597,1.37,2638.2,2638.0,0.37919]
[1729566012794,1.37,2638.1,2638.0,0.37919]
[1729566016096,1.74919,2638.1,2638.0,0.37919]
[1729566016298,1.37,2638.1,2638.0,0.37919]
[1729566018608,1.37,2638.2,2638.0,1.37]
[1729566018807,1.37,2638.2,2638.1,0.37918]
[1729566023303,1.74916,2638.3,2638.1,1.74918]
[1729566023502,2.31776,2638.8,2638.3,0.37915]
[1729566023503,0.37913,2638.6,2638.3,0.37915]
[1729566023704,0.37913,2638.5,2638.4,1.37]
[1729566023909,1.74912,2638.6,2638.4,1.37]
[1729566024210,1.74914,2638.5,2638.2,4.23216667]
[1729566024509,1.74916,2638.3,2638.1,1.37237867]
[1729566024708,1.74916,2638.3,2638.1,0.99319867]
[1729566024709,1.37,2638.2,2638.1,0.99319867]
[1729566025712,1.37,2638.2,2638.1,1.37238867]
[1729566026409,1.37,2638.2,2638.1,0.99319867]
[1729566026909,1.37,2638.2,2638.1,1.37238867]
[1729566027507,3.50683539,2638.5,2638.1,1.37237867]
[1729566027710,3.2078,2638.5,2638.3,1.74915]
[1729566027903,4.5778,2638.5,2638.4,0.37915]
[1729566028107,4.5778,2638.5,2638.4,1.74915]
[1729566028307,4.5778,2638.5,2638.4,0.37915]
[1729566028508,3.2078,2638.5,2638.4,1.74915]
[1729566028914,4.5778,2638.9,2638.4,5.1604]
[1729566029112,1.37,2638.8,2638.7,1.37]
[1729566029312,1.37,2638.8,2638.6,1.37]
[1729566029515,1.37,2638.8,2638.7,0.3791]
[1729566029813,1.37,2638.8,2638.7,1.7491]
[1729566030114,1.37,2638.8,2638.7,1.37]
[1729566030315,4.5778,2638.9,2638.7,1.74909]
[1729566030512,4.5778,2638.9,2638.8,0.37909]
[1729566030815,3.2078,2638.9,2638.8,1.74909]
[1729566031505,1.37,2639.0,2638.8,1.37]
[1729566031707,1.37,2639.1,2638.9,1.74906]
[1729566032107,1.37,2639.1,2639.0,1.37]
[1729566032613,3.2078,2639.2,2639.0,1.37]
[1729566032918,4.5778,2639.2,2639.1,1.74904]
[1729566033214,4.5778,2639.2,2639.1,42.54904]
[1729566034117,1.37,2639.2,2639.1,42.54904]
[1729566034707,0.37901,2639.4,2639.1,42.54904]
[1729566034911,1.37,2639.2,2639.1,42.54904]
[1729566035411,0.37902,2639.3,2639.1,42.17]
[1729566035615,1.37,2639.2,2639.1,42.17]
[1729566036104,1.37,2639.2,2639.1,42.54904]
[1729566036308,1.37,2639.3,2639.1,42.54904]
[1729566036504,0.19036255,2639.8,2639.2,1.37]
[1729566036505,3.2078,2639.8,2639.2,1.37]
[1729566036720,3.58674,2639.8,2639.6,1.37]
[1729566036910,1.74896,2639.7,2639.5,1.37]
[1729566037210,1.37,2639.6,2639.5,1.37]
[1729566037614,1.37,2639.7,2639.6,0.37897]
[1729566037807,1.37,2639.7,2639.6,1.74897]
[1729566038207,1.37,2639.7,2639.6,1.37]
[1729566038517,1.37,2639.7,2639.4,1.74899]
[1729566038810,1.37,2639.5,2639.1,40.8]
[1729566039013,1.37,2639.3,2639.1,0.37904]
[1729566039213,1.37,2639.3,2639.2,1.74903]
[1729566039812,1.37,2639.3,2639.2,1.37]
[1729566040512,1.37,2639.3,2639.2,1.74903]
[1729566040808,0.37897,2639.7,2639.4,0.379]
[1729566041015,1.37,2639.5,2639.4,1.749]
[1729566041310,1.37,2639.7,2639.5,0.37898]
[1729566041515,1.37,2639.6,2639.5,0.37898]
[1729566041907,1.37,2639.6,2639.5,1.74898]
[1729566042916,1.37,2639.6,2639.5,1.37]
[1729566043117,1.37,2639.6,2639.4,1.74899]
[1729566043311,1.37,2639.6,2639.4,1.37]
[1729566043312,1.74897,2639.6,2639.4,1.37]
[1729566043713,1.37,2639.6,2639.4,1.74899]
[1729566044012,1.37,2639.7,2639.5,1.74898]
[1729566044214,4.5778,2639.8,2639.7,0.37896]
[1729566044410,0.37892,2640.0,2639.7,0.37896]
[1729566045115,2.96,2640.2,2639.6,0.37896]
[1729566045611,0.37898,2639.6,2639.3,3.5868]
[1729566045812,0.37898,2639.6,2639.3,0.379]
[1729566046404,2.96,2639.7,2639.1,0.37903]
[1729566046616,0.379,2639.4,2639.1,0.37903]
[1729566046813,2.96,2639.7,2639.0,2.96]
[1729566047009,0.37898,2639.6,2639.0,2.96]
[1729566047213,0.37898,2639.6,2639.3,0.37901]
[1729566047713,2.96,2639.7,2639.0,2.96]
[1729566047913,0.37899,2639.5,2639.2,0.37902]
[1729566048516,0.37898,2639.6,2639.3,0.37901]
[1729566049219,2.96,2639.7,2639.0,2.96]
[1729566049519,0.37899,2639.5,2639.3,0.37902]
[1729566049716,0.37898,2639.6,2639.3,0.37902]
[1729566050113,0.37898,2639.6,2638.9,44.0078]
[1729566050114,0.37903,2639.2,2638.9,41.17906]
[1729566050320,2.96,2639.3,2638.6,3.2078]
[1729566050512,0.37903,2639.2,2638.9,0.37907]
[1729566051520,0.37903,2639.2,2638.7,40.8]
[1729566051521,2.96,2639.3,2638.7,40.8]
[1729566051823,0.37905,2639.1,2638.8,0.37908]
[1729566052321,0.37905,2639.1,2638.9,0.37907]
[1729566052617,0.37905,2639.1,2638.7,40.8]
[1729566052618,0.37903,2639.2,2638.7,40.8]
[1729566052922,0.37903,2639.2,2638.9,0.37906]
[1729566054817,2.96,2639.3,2638.7,40.8]
[1729566055116,3.58684,2639.2,2638.9,0.37907]
[1729566055319,3.2078,2639.2,2638.9,0.37907]
[1729566055521,3.58684,2639.2,2638.9,0.37907]
[1729566056116,3.58684,2639.2,2638.7,0.3791]
[1729566056117,0.37907,2639.0,2638.7,0.3791]
[1729566056722,0.37907,2639.0,2638.7,41.1791]
[1729566057817,0.37908,2638.9,2638.7,40.8]
[1729566058220,2.96,2639.1,2638.7,41.1791]
[1729566058523,0.37907,2639.0,2638.7,41.1791]
[1729566059719,2.96,2639.1,2638.7,40.8]
[1729566059925,3.33905,2639.1,2638.8,0.37908]
[1729566060426,2.96,2639.1,2638.8,0.37908]
[1729566060623,3.33906,2639.1,2638.8,0.37908]
[1729566061023,0.37906,2639.0,2638.7,41.17909]
[1729566061522,2.96,2639.1,2638.8,0.37909]
[1729566061720,3.33905,2639.1,2638.8,0.37909]
[1729566061920,0.37905,2639.1,2638.7,40.8]
[1729566062116,0.37905,2639.1,2638.9,0.37907]
[1729566062319,0.37905,2639.1,2638.8,0.37908]
[1729566062520,0.37905,2639.1,2638.9,0.37907]
[1729566063117,0.37905,2639.1,2638.8,0.37908]
[1729566063318,3.51133924,2639.2,2638.7,40.8]
[1729566063526,0.37908,2638.9,2638.7,40.8]
[1729566063821,0.37909,2638.8,2638.7,40.8]
[1729566064429,1.74909,2638.8,2638.7,40.8]
[1729566064618,1.37,2638.8,2638.7,40.8]
[1729566064821,1.74909,2638.8,2638.7,40.8]
[1729566065023,1.37,2638.8,2638.7,40.8]
[1729566065220,1.74909,2638.8,2638.7,40.8]
[1729566065721,1.37,2638.8,2638.7,40.8]
[1729566067624,1.37,2638.8,2638.7,42.5491]
[1729566067815,1.37,2638.9,2638.8,0.37909]
[1729566068422,1.37,2639.1,2638.9,0.37907]
[1729566068724,1.74905,2639.1,2638.9,1.74907]
[1729566068922,1.37,2639.0,2638.9,1.74907]
[1729566070628,1.37,2639.1,2638.9,1.74907]
[1729566071020,1.37,2639.0,2638.8,1.74909]
[1729566071224,1.37,2639.0,2638.8,1.37]
[1729566071421,1.37,2638.9,2638.7,42.17]
[1729566071623,1.37,2638.9,2638.8,1.74909]
[1729566073429,1.37,2639.0,2638.8,1.74909]
[1729566074332,1.37,2639.0,2638.9,1.37]
[1729566074635,1.37,2639.0,2638.9,1.74907]
[1729566075337,1.37,2639.0,2638.9,1.37]
[1729566075635,1.37,2639.0,2638.9,1.74907]
[1729566076827,1.37,2639.0,2638.9,1.37]
[1729566077035,1.37,2639.0,2638.8,1.74908]
[1729566077230,1.37,2638.9,2638.8,1.74908]
[1729566079331,1.37,2639.1,2638.9,0.37906]
[1729566079538,1.37,2639.1,2639.0,1.74906]
[1729566079737,1.74904,2639.1,2639.0,1.37]
[1729566080036,1.74904,2639.1,2638.9,1.74907]
[1729566080429,1.37,2639.0,2638.9,1.74907]
[1729566080632,1.37,2639.0,2638.9,1.37]
[1729566080838,1.37,2639.0,2638.9,1.74907]
[1729566081431,1.37,2639.0,2638.9,1.37]
[1729566081937,1.37,2639.0,2638.9,1.74907]
[1729566082127,1.37,2639.0,2638.9,1.37]
[1729566082327,1.37,2639.0,2638.9,0.37907]
[1729566082938,1.74906,2639.0,2638.8,1.74908]
[1729566083137,1.74908,2638.9,2638.7,40.8]
[1729566083338,1.37,2638.9,2638.7,41.17909]
[1729566083541,1.37,2638.9,2638.7,42.54909]
[1729566084141,1.37,2638.9,2638.8,0.37909]
[1729566085645,1.37,2638.9,2638.7,42.17]
[1729566085944,1.37,2638.9,2638.7,42.54909]
[1729566087038,1.74907,2639.0,2638.7,42.54909]
[1729566087240,1.74907,2639.0,2638.7,42.17]
[1729566087439,1.74907,2639.0,2638.8,0.37908]
[1729566089448,1.74907,2639.0,2638.7,42.54909]
[1729566090044,1.37,2638.9,2638.7,42.54909]
[1729566090746,1.74907,2638.9,2638.7,42.54909]
[1729566092038,1.37,2638.9,2638.7,42.54909]
[1729566093549,1.74908,2638.9,2638.7,42.54909]
[1729566093847,1.37,2638.9,2638.7,42.54909]
[1729566094240,1.74907,2638.9,2638.7,42.5491]
[1729566094948,1.37,2638.9,2638.7,42.17]
[1729566095147,1.37,2638.9,2638.7,42.54909]
[1729566095947,1.37,2638.9,2638.8,0.99319867]
[1729566096154,1.74907,2638.9,2638.8,0.99319867]
[1729566096346,1.74907,2638.9,2638.7,41.79319867]
[1729566096347,0.37909,2638.8,2638.7,41.79319867]
[1729566096546,1.74909,2638.8,2638.7,43.43424598]
[1729566096743,1.74909,2638.8,2638.7,41.79319867]
[1729566097149,1.37,2638.8,2638.7,41.79319867]
[1729566097346,1.74909,2638.8,2638.7,41.79319867]
[1729566097654,1.37,2638.8,2638.7,41.79319867]
[1729566098045,1.37,2638.8,2638.7,42.17229867]
[1729566098750,1.37,2638.8,2638.7,42.82019934]
[1729566099553,1.37,2638.8,2638.7,43.81520586]
[1729566099945,1.37,2638.8,2638.7,42.82019934]
[1729566100850,1.37,2638.8,2638.7,43.81518778]
[1729566101050,1.74909,2638.8,2638.7,43.43608778]
[1729566101758,1.74909,2638.8,2638.7,45.67999734]
[1729566101759,1.37,2638.8,2638.7,45.67999734]
[1729566101956,1.37,2638.8,2638.7,44.19019934]
[1729566102254,1.74909,2638.8,2638.7,1.37409117]
[1729566102658,1.37,2638.8,2638.7,1.37409117]
[1729566102850,1.37,2638.8,2638.7,1.7491]
[1729566103648,1.74909,2638.8,2638.7,1.7491]
[1729566103854,1.37,2638.8,2638.7,1.7491]
[1729566105051,1.74908,2638.9,2638.7,1.7491]
[1729566105253,1.74908,2638.9,2638.8,0.37909]
[1729566105954,1.37,2638.9,2638.8,0.37909]
[1729566107149,1.74907,2639.0,2638.8,0.37909]
[1729566108868,1.37,2639.0,2638.8,0.37909]
[1729566109073,1.37,2639.1,2638.9,1.74906]
[1729566109257,1.74904,2639.2,2638.9,1.74906]
[1729566109567,1.74904,2639.2,2639.0,0.37905]
[1729566110362,3.58682,2639.4,2639.1,1.37]
[1729566110561,1.37,2639.3,2639.1,1.74904]
[1729566110962,1.37,2639.3,2639.2,1.37402117]
[1729566111162,1.37,2639.3,2639.1,2.74403117]
[1729566111759,3.58682,2639.4,2639.2,2.74401117]
[1729566111760,4.5778,2639.4,2639.2,2.74401117]
[1729566112265,1.37,2639.3,2639.2,2.74401117]
[1729566112760,1.37,2639.3,2639.2,2.36499117]
[1729566112961,1.37,2639.3,2639.2,1.37]
[1729566113166,1.37,2639.3,2639.1,2.36499117]
[1729566113368,1.37,2639.2,2639.1,2.74403117]
[1729566117566,1.37,2639.2,2639.1,1.74904]
[1729566117770,1.37,2639.2,2639.1,2.74403117]
[1729566117973,1.37,2639.2,2639.1,1.74904]
[1729566119673,1.74904,2639.2,2639.0,0.37905]
[1729566119982,1.74904,2639.2,2638.9,1.74907]
[1729566119983,1.37,2639.0,2638.9,1.74907]
[1729566120476,1.37,2639.0,2638.9,5.53867]
[1729566120878,1.37,2639.2,2639.1,0.37904]
[1729566121467,1.37,2639.2,2638.9,4.5778]
[1729566121779,1.37,2639.0,2638.6,44.0078]
[1729566122076,1.37,2638.7,2638.6,41.17911]
[1729566122271,1.37,2638.7,2638.6,42.54911]
[1729566122872,1.37,2638.9,2638.6,42.17]
[1729566123070,1.74906,2639.0,2638.8,1.74909]
[1729566124075,1.37,2638.9,2638.8,1.74909]
[1729566124478,1.37,2638.9,2638.8,1.37]
[1729566126081,1.37,2638.9,2638.7,1.37]
[1729566126082,1.74907,2638.9,2638.7,1.37]
[1729566126377,1.37,2638.9,2638.7,1.74909]
[1729566126780,1.74907,2638.9,2638.7,1.74909]
[1729566126971,1.37,2638.9,2638.8,1.37]
[1729566128068,1.74907,2638.9,2638.8,1.37]
[1729566128274,1.37,2638.9,2638.8,1.37]
[1729566129476,1.74907,2638.9,2638.8,1.37]
[1729566130080,1.37,2638.9,2638.8,1.37]
[1729566130774,1.74907,2638.9,2638.8,1.37]
[1729566130982,1.74907,2638.9,2638.7,0.37909]
[1729566130983,1.74907,2638.9,2638.7,1.74909]
[1729566132180,1.37,2638.9,2638.7,1.74909]
[1729566132583,1.74908,2638.9,2638.7,1.37]
[1729566133279,1.74908,2638.9,2638.7,1.7491]
[1729566133874,1.74908,2638.9,2638.7,1.37]
[1729566134070,1.74908,2638.9,2638.4,4.697598]
[1729566134071,1.37,2638.8,2638.4,4.20279117]
[1729566134271,5.82897698,2639.2,2638.1,0.99499117]
[1729566134272,2.74,2638.5,2638.1,0.99499117]
[1729566134474,2.74,2638.5,2638.0,0.99499117]
[1729566134475,1.37,2638.2,2638.0,0.99499117]
[1729566134679,1.37,2638.5,2638.0,40.8]
[1729566134680,1.74919,2638.1,2638.0,40.8]
[1729566135586,1.74919,2638.1,2637.8,3.2078]
[1729566135784,1.37,2637.9,2637.8,3.2078]
[1729566136086,1.37,2637.9,2637.8,44.0078]
[1729566136495,5.1612,2637.9,2637.4,3.2078]
[1729566136783,1.379,2638.3,2637.4,0.37929]
[1729566136784,1.37,2637.5,2637.4,0.37929]
[1729566136980,1.37,2637.5,2637.4,1.74929]
[1729566137690,1.37,2637.5,2637.3,1.7493]
[1729566137988,1.37,2637.5,2637.4,0.37929]
[1729566138376,1.37,2637.5,2637.3,1.37]
[1729566138579,1.37,2637.5,2637.3,1.74929]
[1729566139284,1.37,2637.4,2637.3,0.37929]
[1729566139483,1.37,2637.4,2637.2,1.74931]